bitfinex-derivatives/quotes_BNBF0:USTF0_20250130
["timestamp","ask_amount","ask_price","bid_price","bid_amount"]
[1738244970803,0.27074264,679.37,678.01,0.29498089]
[1738244970804,0.27074264,679.37,678.02,0.2567423]
[1738244971004,0.27074264,679.37,678.03,0.2567423]
[1738244971204,0.27074264,679.37,678.04,0.2567423]
[1738244971408,0.27074264,679.37,678.02,0.2567423]
[1738244971708,1.10185875,679.35,678.03,0.2567423]
[1738244971900,0.27074264,679.34,678.04,0.2567423]
[1738244972107,1.10185875,679.35,678.01,0.29498089]
[1738244972303,0.2707437,679.34,678.02,0.25673352]
[1738244975513,0.27073124,679.33,678.03,0.25669845]
[1738244975812,0.27073124,679.32,678.04,0.25669845]
[1738244976012,0.27073124,679.32,678.01,0.29498089]
[1738244976013,1.10185875,679.35,678.05,0.25669845]
[1738244976316,0.29438605,679.38,678.01,0.29498089]
[1738244976317,0.27073851,679.34,678.06,0.25669845]
[1738244976516,0.27073851,679.36,678.02,0.25669845]
[1738244976716,0.27073851,679.35,678.03,0.25669845]
[1738244976915,0.27073851,679.36,678.02,0.25669845]
[1738244977116,1.10185875,679.37,678.01,0.29498089]
[1738244977319,0.27073934,679.36,678.02,0.25672009]
[1738244978619,1.37259809,679.36,678.02,0.25672009]
[1738244979022,0.27073934,679.35,678.02,0.25672009]
[1738244980616,0.27074839,679.34,678.03,0.25674782]
[1738244980818,0.27074839,679.33,678.04,0.25674782]
[1738244981117,0.27074839,679.32,678.05,0.25674782]
[1738244981317,0.27074839,679.35,678.02,0.25674782]
[1738244982116,1.10185875,679.29,678.01,0.29498089]
[1738244982317,1.10185875,679.29,678.02,0.25669755]
[1738244982618,1.10185875,679.29,678.03,0.29497219]
[1738244982817,1.10185875,679.29,678.04,0.25669755]
[1738244983017,1.10185875,679.29,678.05,0.29496349]
[1738244983217,1.10185875,679.29,678.06,0.25669755]
[1738244983417,1.10185875,679.29,678.07,0.29495479]
[1738244983618,0.27072514,679.28,678.08,0.25669755]
[1738244983919,1.10185875,679.29,678.08,0.25669755]
[1738244984517,1.10185875,679.28,678.08,0.25669755]
[1738244987121,1.10185875,679.33,678.08,0.25669755]
[1738244987317,1.10185875,679.33,678.07,0.29495479]
[1738244987618,1.10185875,679.33,678.08,0.25661648]
[1738244988520,1.10185875,679.33,678.09,0.29494609]
[1738244988719,1.10185875,679.33,678.1,0.25661648]
[1738244989117,1.10185875,679.33,678.11,0.29493739]
[1738244989318,1.10185875,679.33,678.12,0.25661648]
[1738244989520,1.10185875,679.33,678.13,0.2949287]
[1738244989820,1.10185875,679.33,678.14,0.25661648]
[1738244990020,1.10185875,679.33,678.15,0.29492]
[1738244990220,1.10185875,679.33,678.16,0.25661648]
[1738244990619,1.10185875,679.26,678.16,0.25661648]
[1738244993325,0.29438605,679.38,678.16,0.25661648]
[1738244993326,1.10185875,679.25,678.16,0.25661648]
[1738244993924,1.10185875,679.25,678.15,0.29492]
[1738244994125,1.10185875,679.25,678.17,0.2569637]
[1738244994326,1.10185875,679.25,678.18,0.2569637]
[1738244994526,1.10185875,679.25,678.16,0.2569637]
[1738244996225,1.10185875,679.23,678.16,0.2569637]
[1738244997518,1.10185875,679.23,678.17,0.25688278]
[1738244997823,1.10185875,679.23,678.18,0.25688278]
[1738244998026,1.10185875,679.23,678.16,0.25688278]
[1738244998324,1.10185875,679.23,678.17,0.25688278]
[1738244998623,1.10185875,679.23,678.18,0.25688278]
[1738244998826,1.10185875,679.24,678.16,0.25688278]
[1738244999022,1.10185875,679.24,678.17,0.25688278]
[1738244999226,1.10185875,679.24,678.16,0.25688278]
[1738244999426,1.10185875,679.24,678.17,0.25688278]
[1738244999620,1.10185875,679.24,678.16,0.25688278]
[1738244999821,1.10185875,679.24,678.17,0.25688278]
[1738245000020,1.10185875,679.24,678.16,0.25688278]
[1738245000325,1.10185875,679.24,678.17,0.25688278]
[1738245000525,1.10185875,679.24,678.16,0.25688278]
[1738245000725,1.10185875,679.24,678.17,0.25688278]
[1738245001027,1.10185875,679.24,678.18,0.25688278]
[1738245001327,1.10185875,679.24,678.19,0.25688278]
[1738245001523,1.10185875,679.24,678.2,0.25688278]
[1738245001721,1.10185875,679.24,678.21,0.25688278]
[1738245001919,1.10185875,679.24,678.16,0.25688278]
[1738245002126,1.10185875,679.24,678.17,0.25688278]
[1738245002327,1.10185875,679.34,678.16,0.25688278]
[1738245005331,1.10185875,679.34,678.15,0.29492]
[1738245005724,1.10185875,679.33,678.15,0.29492]
[1738245006727,1.10185875,679.33,678.16,0.25689476]
[1738245006930,1.10185875,679.33,678.15,0.29492]
[1738245007424,1.10185875,679.33,678.16,0.25686877]
[1738245008831,1.10185875,679.33,678.17,0.25685289]
[1738245009031,1.10185875,679.33,678.16,0.25685289]
[1738245009335,1.10185875,679.35,678.16,0.25685289]
[1738245010528,1.10185875,679.35,678.17,0.2568582]
[1738245011032,1.10185875,679.35,678.18,0.25685992]
[1738245011229,1.10185875,679.35,678.16,0.25685992]
[1738245012234,1.10185875,679.35,678.15,0.29492]
[1738245012431,1.10185875,679.35,678.16,0.2568762]
[1738245013127,1.10185875,679.35,678.17,0.2949113]
[1738245013330,1.10185875,679.35,678.18,0.2568762]
[1738245014036,1.10185875,679.35,678.19,0.25689101]
[1738245014235,1.10185875,679.35,678.18,0.25689101]
[1738245014430,1.10185875,679.35,678.19,0.25689101]
[1738245014630,1.10185875,679.35,678.18,0.25689101]
[1738245014828,1.10185875,679.35,678.19,0.25689101]
[1738245015030,1.10185875,679.35,678.2,0.25689101]
[1738245015237,1.10185875,679.32,678.18,0.25689101]
[1738245015437,1.10185875,679.32,678.19,0.25689101]
[1738245015632,1.10185875,679.32,678.17,0.2949113]
[1738245015839,1.10185875,679.32,678.18,0.25688034]
[1738245016138,1.10185875,679.32,678.17,0.2949113]
[1738245017539,1.10185875,679.34,678.17,0.2949113]
[1738245023049,1.10185875,679.35,678.17,0.2949113]
[1738245026152,1.10185875,679.36,678.17,0.2949113]
[1738245029756,1.10185875,679.25,678.17,0.2949113]
[1738245031857,1.10185875,679.22,678.17,0.2949113]
[1738245033258,1.10185875,679.22,678.18,0.25693453]
[1738245034058,1.10185875,679.22,678.17,0.2949113]
[1738245035956,1.10185875,679.22,678.18,0.25692062]
[1738245036157,1.10185875,679.22,678.17,0.2949113]
[1738245036359,1.10185875,679.22,678.18,0.25692885]
[1738245037562,1.10185875,679.24,678.18,0.25692885]
[1738245038763,1.10185875,679.24,678.17,0.2949113]
[1738245038963,1.10185875,679.24,678.18,0.25695235]
[1738245041362,1.10185875,679.17,678.18,0.25695235]
[1738245043558,1.10185875,679.17,678.19,0.25693242]
[1738245043764,1.10185875,679.17,678.18,0.25693242]
[1738245044066,1.10185875,679.17,678.19,0.25693242]
[1738245044266,1.10185875,679.17,678.18,0.25693242]
[1738245044465,1.10185875,679.17,678.19,0.25693242]
[1738245044667,1.10185875,679.17,678.18,0.25693242]
[1738245044860,1.10185875,679.17,678.2,0.25693242]
[1738245045060,1.10185875,679.17,678.21,0.25693242]
[1738245045268,1.10185875,679.17,678.22,0.25693242]
[1738245045567,1.10185875,679.17,678.23,0.25693242]
[1738245045765,1.10185875,679.17,678.18,0.25693242]
[1738245045966,1.10185875,679.17,678.19,0.25693242]
[1738245046267,1.10185875,679.17,678.2,0.25693242]
[1738245046567,1.10185875,679.17,678.21,0.2569576]
[1738245046769,1.10185875,679.17,678.22,0.2569576]
[1738245047066,1.10185875,679.17,678.23,0.2569576]
[1738245047267,1.10185875,679.17,678.24,0.2569576]
[1738245047464,1.10185875,679.17,678.25,0.2569576]
[1738245047666,1.10185875,679.1,678.26,0.2569576]
[1738245047864,1.10185875,679.1,678.27,0.2569576]
[1738245048066,1.10185875,679.1,678.28,0.2569576]
[1738245048264,1.10185875,679.1,678.18,0.2569576]
[1738245048463,1.10185875,679.1,678.17,1.83297053]
[1738245048664,1.10185875,679.1,678.18,0.25690662]
[1738245051278,0.29438605,679.38,678.18,0.25690662]
[1738245051279,1.10185875,679.18,678.18,0.25690662]
[1738245053174,1.10185875,679.18,678.17,1.83297053]
[1738245053378,1.10185875,679.18,678.18,0.25684346]
[1738245054578,1.10185875,679.31,678.18,0.25684346]
[1738245054774,1.10185875,679.31,678.17,1.83297053]
[1738245054972,1.10185875,679.31,678.18,0.25686008]
[1738245057479,1.10185875,679.3,678.18,0.25686008]
[1738245059876,0.29438605,679.38,678.18,0.25686008]
[1738245059877,1.10185875,679.27,678.18,0.25686008]
[1738245060077,1.10185875,679.27,678.19,0.2569334]
[1738245060282,1.10185875,679.27,678.18,0.2569334]
[1738245060478,1.10185875,679.27,678.17,1.83297053]
[1738245060685,1.10185875,679.27,678.18,0.25693732]
[1738245061285,0.27072925,679.26,678.19,0.2569527]
[1738245061586,1.10185875,679.27,678.2,0.2569527]
[1738245061779,1.10185875,679.27,678.18,0.2569527]
[1738245061979,1.10185875,679.27,678.19,0.2569527]
[1738245062183,1.10185875,679.27,678.18,0.2569527]
[1738245064089,0.27072626,679.26,678.18,0.2569527]
[1738245064292,1.10185875,679.17,678.18,0.2569527]
[1738245069791,1.10185875,679.17,678.19,0.25695152]
[1738245069992,1.10185875,679.17,678.18,0.25695152]
[1738245070190,1.10185875,679.17,678.19,0.25695152]
[1738245070386,1.10185875,679.17,678.18,0.25695152]
[1738245070588,1.10185875,679.17,678.19,0.25695152]
[1738245070788,1.10185875,679.17,678.18,0.25695152]
[1738245071095,1.10185875,679.17,678.19,0.25695152]
[1738245071293,1.10185875,679.17,678.18,0.25695152]
[1738245071496,1.10185875,679.17,678.19,0.25695152]
[1738245071693,1.10185875,679.17,678.18,0.25695152]
[1738245071895,1.10185875,679.14,678.17,1.83297053]
[1738245072291,1.10185875,679.14,678.18,0.2569481]
[1738245073097,1.10185875,679.14,678.17,1.83297053]
[1738245073292,1.10185875,679.14,678.18,0.25693842]
[1738245074998,1.10185875,679.2,678.18,0.25693842]
[1738245077596,1.10185875,679.18,678.18,0.25693842]
[1738245081402,1.10185875,679.21,678.17,1.83297053]
[1738245081703,1.10185875,679.21,678.18,0.25689967]
[1738245084705,1.10185875,679.18,678.18,0.25689967]
[1738245085205,1.10185875,679.18,678.17,1.83297053]
[1738245088006,0.29438605,679.38,678.17,1.83297053]
[1738245094712,0.27072545,679.37,678.18,0.2567704]
[1738245095206,0.27072583,679.36,678.19,0.25677605]
[1738245095411,0.27072583,679.37,678.18,0.25677605]
[1738245095611,0.27072583,679.35,678.2,0.25677605]
[1738245095910,0.27072583,679.34,678.17,1.83297053]
[1738245096102,0.27072583,679.33,678.17,1.83297053]
[1738245096308,0.27072583,679.37,678.17,1.83297053]
[1738245096503,0.27072583,679.36,678.17,1.83297053]
[1738245096810,0.27072583,679.35,678.17,1.83297053]
[1738245097010,0.27072583,679.37,678.17,1.83297053]
[1738245097207,0.27072583,679.36,678.17,1.83297053]
[1738245097408,0.27072583,679.37,678.17,1.83297053]
[1738245097605,1.10185875,679.16,678.17,1.83297053]
[1738245100307,1.10185875,679.1,678.17,1.83297053]
[1738245103916,1.10185875,679.25,678.17,1.83297053]
[1738245107215,0.27077644,679.24,678.17,1.83297053]
[1738245110018,1.10185875,679.21,678.17,1.83297053]
[1738245111620,0.27077655,679.2,678.17,1.83297053]
[1738245112416,0.27077543,679.19,678.17,1.83297053]
[1738245112620,0.27077543,679.2,678.17,1.83297053]
[1738245112817,0.27077543,679.19,678.17,1.83297053]
[1738245113017,0.27077543,679.21,678.17,1.83297053]
[1738245113222,0.27077543,679.2,678.17,1.83297053]
[1738245113422,1.10185875,679.22,678.17,1.83297053]
[1738245113423,0.27077543,679.21,678.17,1.83297053]
[1738245113624,0.27077543,679.2,678.17,1.83297053]
[1738245113823,0.27077543,679.21,678.17,1.83297053]
[1738245114023,0.27077543,679.19,678.17,1.83297053]
[1738245114218,0.27077543,679.2,678.17,1.83297053]
[1738245114418,0.27077543,679.19,678.17,1.83297053]
[1738245114622,0.27077543,679.18,678.17,1.83297053]
[1738245115022,0.27077543,679.17,678.17,1.83297053]
[1738245115222,0.27077543,679.21,678.17,1.83297053]
[1738245115524,1.10185875,679.16,678.17,1.83297053]
[1738245116521,0.27076866,679.15,678.17,1.83297053]
[1738245116724,1.10185875,679.16,678.17,1.83297053]
[1738245120928,1.10185875,679.19,678.17,1.83297053]
[1738245123331,1.10185875,679.18,678.17,1.83297053]
[1738245123529,1.10185875,679.18,678.18,0.25684556]
[1738245123731,1.10185875,679.18,678.19,0.25681145]
[1738245123931,1.10185875,679.18,678.2,0.25681145]
[1738245124132,1.10185875,679.18,678.18,0.25681145]
[1738245124330,1.10185875,679.18,678.19,0.25681145]
[1738245124633,1.10185875,679.18,678.2,0.25681145]
[1738245124829,1.10185875,679.18,678.18,0.25681145]
[1738245125024,1.10185875,679.18,678.19,0.25681145]
[1738245125231,1.10185875,679.18,678.18,0.25681145]
[1738245125428,1.10185875,679.18,678.19,0.25681145]
[1738245125625,1.10185875,679.25,678.18,0.25681145]
[1738245125826,1.10185875,679.25,678.19,0.25681145]
[1738245126032,1.10185875,679.25,678.18,0.25681145]
[1738245126232,1.10185875,679.25,678.19,0.25681145]
[1738245126432,1.10185875,679.25,678.2,0.25681145]
[1738245126634,1.10185875,679.25,678.18,0.25681145]
[1738245126831,1.10185875,679.25,678.19,0.25681145]
[1738245127031,1.10185875,679.25,678.18,0.25681145]
[1738245128833,1.10185875,679.25,678.17,1.83297053]
[1738245128834,1.10185875,679.25,678.19,0.25670171]
[1738245129027,1.10185875,679.25,678.18,0.25670171]
[1738245129232,1.10185875,679.25,678.19,0.25670171]
[1738245129433,0.29438605,679.38,678.17,1.83297053]
[1738245129434,1.10185875,679.33,678.18,0.25670171]
[1738245129732,0.27071102,679.32,678.19,0.25670171]
[1738245129932,0.27071102,679.32,678.18,0.25670171]
[1738245130133,1.10185875,679.33,678.19,0.25670171]
[1738245130333,1.10185875,679.33,678.2,0.25670171]
[1738245130532,1.10185875,679.33,678.18,0.25670171]
[1738245130733,1.10185875,679.33,678.19,0.25670171]
[1738245130933,1.10185875,679.33,678.2,0.25670171]
[1738245131131,1.10185875,679.33,678.21,0.25670171]
[1738245131334,1.10185875,679.33,678.18,0.25670171]
[1738245131533,1.10185875,679.33,678.19,0.25670171]
[1738245131731,1.10185875,679.33,678.2,0.25670171]
[1738245132036,1.10185875,679.33,678.17,1.83297053]
[1738245132237,1.10185875,679.33,678.18,0.2567218]
[1738245133138,0.27069744,679.32,678.18,0.2567218]
[1738245134038,0.27070445,679.31,678.19,0.25674259]
[1738245134234,0.27070445,679.3,678.2,0.25674259]
[1738245134432,0.27070445,679.29,678.21,0.25674259]
[1738245134632,0.27070445,679.28,678.22,0.25674259]
[1738245134835,0.27070445,679.32,678.18,0.25674259]
[1738245135037,0.27070445,679.31,678.19,0.25674259]
[1738245135337,0.27070445,679.3,678.2,0.25674259]
[1738245135537,0.27070445,679.32,678.18,0.25674259]
[1738245135739,0.27070686,679.31,678.19,0.25675526]
[1738245135933,0.27070686,679.3,678.2,0.25675526]
[1738245136139,0.27070686,679.29,678.21,0.25675526]
[1738245136335,0.27070686,679.32,678.22,0.25675526]
[1738245136534,0.27070686,679.31,678.23,0.25675526]
[1738245136751,0.27070686,679.3,678.24,0.25675526]
[1738245136935,0.27070686,679.29,678.25,0.25675526]
[1738245137240,1.10185875,679.33,678.26,0.25675526]
[1738245137241,0.27070686,679.28,678.26,0.25675526]
[1738245137435,0.27070686,679.27,678.27,0.25675526]
[1738245137632,0.27070686,679.26,678.28,0.25675526]
[1738245137838,0.27070686,679.25,678.29,0.25675526]
[1738245138040,0.27070686,679.32,678.18,0.25675526]
[1738245138240,0.27070686,679.31,678.19,0.25675526]
[1738245138448,0.27070686,679.32,678.18,0.25675526]
[1738245138740,0.27070686,679.31,678.19,0.25675526]
[1738245138939,0.27070686,679.32,678.18,0.25675526]
[1738245139139,1.10185875,679.3,678.18,0.25675526]
[1738245139342,0.27070686,679.29,678.18,0.25675526]
[1738245144248,1.10185875,679.28,678.18,0.25675526]
[1738245144448,0.27070686,679.27,678.18,0.25675526]
[1738245145842,1.10185875,679.28,678.18,0.25675526]
[1738245146045,0.27070176,679.27,678.18,0.25675526]
[1738245146649,1.10185875,679.28,678.18,0.25675526]
[1738245147753,1.10185875,679.31,678.18,0.25675526]
[1738245148051,0.27070329,679.3,678.18,0.25675526]
[1738245148649,1.10185875,679.31,678.18,0.25675526]
[1738245150747,1.10185875,679.32,678.18,0.25675526]
[1738245150949,1.10185875,679.32,678.17,1.83273831]
[1738245153258,1.10185875,679.33,678.17,1.83273831]
[1738245154954,0.27076963,679.32,678.17,1.83273831]
[1738245156062,1.10185875,679.29,678.17,1.83273831]
[1738245158863,1.10185875,679.29,678.17,0.2949113]
[1738245159068,1.10185875,679.25,678.17,0.2949113]
[1738245159366,1.10185875,679.25,678.17,1.8333105]
[1738245163168,0.27077309,679.24,678.17,1.8333105]
[1738245163371,1.10185875,679.25,678.17,1.8333105]
[1738245164772,1.10185875,679.26,678.17,1.8333105]
[1738245164970,0.27077754,679.25,678.17,1.8333105]
[1738245166270,1.10185875,679.26,678.17,1.8333105]
[1738245167071,0.27078362,679.25,678.17,1.8333105]
[1738245167271,1.10185875,679.26,678.17,1.8333105]
[1738245167771,0.27078066,679.25,678.17,1.8333105]
[1738245168272,1.10185875,679.26,678.17,1.8333105]
[1738245168971,0.27077551,679.25,678.17,1.8333105]
[1738245171374,1.10185875,679.23,678.17,1.8333105]
[1738245171673,0.27077958,679.22,678.17,1.8333105]
[1738245175578,1.10185875,679.23,678.17,1.8333105]
[1738245175775,0.27078092,679.22,678.17,1.8333105]
[1738245176873,1.10185875,679.18,678.17,1.8333105]
[1738245177077,0.27077431,679.17,678.17,1.8333105]
[1738245178577,0.27077961,679.16,678.17,1.8333105]
[1738245178878,0.27077961,679.15,678.17,1.8333105]
[1738245179079,0.27077961,679.17,678.17,1.8333105]
[1738245179281,1.10185875,679.18,678.17,1.8333105]
[1738245179579,0.2707776,679.17,678.17,1.8333105]
[1738245179783,1.10185875,679.18,678.17,1.8333105]
[1738245180880,1.10185875,679.14,678.17,1.8333105]
[1738245183274,1.10185875,679.14,678.17,0.2949113]
[1738245183480,1.10185875,679.24,678.17,0.2949113]
[1738245186380,1.10185875,679.15,678.17,0.2949113]
[1738245187281,0.27079034,679.14,678.17,0.2949113]
[1738245188382,1.10185875,679.15,678.17,0.2949113]
[1738245189382,1.10185875,679.03,678.17,0.2949113]
[1738245191383,1.10185875,679.08,678.17,0.2949113]
[1738245194088,0.29438605,679.38,678.17,0.2949113]
[1738245194089,1.10185875,679.15,678.17,0.2949113]
[1738245196788,0.29438605,679.38,678.17,0.2949113]
[1738245196789,1.10185875,679.16,678.17,0.2949113]
[1738245200990,1.10185875,679.19,678.18,0.25710843]
[1738245201791,1.10185875,679.19,678.17,0.2949113]
[1738245201991,1.10185875,679.19,678.18,0.25711603]
[1738245202291,1.10185875,679.19,678.17,0.2949113]
[1738245203991,1.10185875,679.16,678.17,0.2949113]
[1738245208492,1.10185875,679.16,678.18,0.25715817]
[1738245208688,1.10185875,679.16,678.19,0.25714595]
[1738245208993,1.10185875,679.16,678.17,0.2949113]
[1738245209193,1.10185875,679.16,678.18,0.25713276]
[1738245210192,1.10185875,679.15,678.18,0.25713276]
[1738245210389,1.10185875,679.15,678.17,0.2949113]
[1738245210891,1.10185875,679.15,678.18,0.25712361]
[1738245211088,1.10185875,679.15,678.17,0.2949113]
[1738245212293,1.10185875,679.15,678.18,0.25711374]
[1738245212596,1.10185875,679.16,678.18,0.25711374]
[1738245215194,1.10185875,679.12,678.18,0.25711374]
[1738245216993,1.10185875,679.12,678.19,0.25709695]
[1738245217197,1.10185875,679.12,678.18,0.25709695]
[1738245217801,1.10185875,679.33,678.18,0.25709695]
[1738245217802,1.10185875,679.13,678.18,0.25709695]
[1738245218501,1.10185875,679.13,678.19,0.25708844]
[1738245218700,1.10185875,679.13,678.17,0.2949113]
[1738245218895,1.10185875,679.13,678.18,0.25709356]
[1738245220706,1.10185875,679.13,678.19,0.25709819]
[1738245220904,1.10185875,679.13,678.18,0.25709819]
[1738245221208,1.10185875,679.12,678.19,0.25709819]
[1738245221505,1.10185875,679.12,678.2,0.25709819]
[1738245221798,1.10185875,679.12,678.21,0.25709819]
[1738245222002,1.10185875,679.12,678.18,0.25709819]
[1738245222201,1.10185875,679.12,678.19,0.25709819]
[1738245222403,1.10185875,679.12,678.18,0.25709819]
[1738245222602,1.10185875,679.12,678.19,0.25709819]
[1738245222799,1.10185875,679.12,678.18,0.25709819]
[1738245223005,1.10185875,679.12,678.19,0.25709819]
[1738245223308,1.10185875,679.12,678.2,0.25709819]
[1738245223507,1.10185875,679.12,678.18,0.25709819]
[1738245223807,1.10185875,679.12,678.19,0.25709819]
[1738245224001,1.10185875,679.12,678.18,0.25709819]
[1738245224202,1.10185875,679.06,678.19,0.25709819]
[1738245224404,1.10185875,679.06,678.18,0.25709819]
[1738245227112,1.10185875,679.02,678.18,0.25709819]
[1738245230013,1.10185875,679.07,678.18,0.25709819]
[1738245230414,1.10185875,679.07,678.17,0.2949113]
[1738245231216,1.10185875,679.07,678.18,0.25712183]
[1738245233118,1.10185875,679.05,678.18,0.25712183]
[1738245233620,1.10185875,679.05,678.17,0.2949113]
[1738245236022,1.10185875,679.09,678.17,0.2949113]
[1738245237824,1.10185875,679.09,678.18,0.25712543]
[1738245238321,1.10185875,679.09,678.17,0.2949113]
[1738245238526,1.10185875,679.09,678.18,0.25713862]
[1738245238726,1.10185875,679.06,678.18,0.25713862]
[1738245238920,1.10185875,679.06,678.17,0.2949113]
[1738245239123,1.10185875,679.06,678.18,0.25713855]
[1738245243828,1.10185875,679.06,678.19,0.25709884]
[1738245244030,1.10185875,679.06,678.2,0.25709884]
[1738245244229,1.10185875,679.06,678.18,0.25709884]
[1738245244529,1.10185875,679.06,678.19,0.25709884]
[1738245244722,1.10185875,679.06,678.18,0.25709884]
[1738245244923,1.10185875,679.08,678.19,0.25709884]
[1738245245122,1.10185875,679.08,678.18,0.25709884]
[1738245245322,1.10185875,679.08,678.19,0.25709884]
[1738245245522,1.10185875,679.08,678.2,0.2571023]
[1738245245726,1.10185875,679.08,678.21,0.2571023]
[1738245245926,1.10185875,679.08,678.18,0.2571023]
[1738245246127,1.10185875,679.08,678.19,0.2571023]
[1738245246327,1.10185875,679.08,678.18,0.2571023]
[1738245246524,1.10185875,679.08,678.17,0.2949113]
[1738245246728,1.10185875,679.08,678.18,0.2570826]
[1738245247029,1.10185875,679.08,678.17,0.2949113]
[1738245247223,1.10185875,679.08,678.18,0.25708321]
[1738245247429,1.10185875,679.08,678.17,0.2949113]
[1738245251435,1.10185875,679.04,678.17,0.2949113]
[1738245252033,1.10185875,679.04,678.18,0.25704298]
[1738245252733,1.10185875,679.04,678.17,0.2949113]
[1738245253234,1.10185875,679.04,678.18,0.2570032]
[1738245254034,1.10185875,679.12,678.18,0.2570032]
[1738245255935,1.10185875,679.12,678.17,0.2949113]
[1738245256838,1.10185875,679.12,678.18,0.25699939]
[1738245257339,1.10185875,679.12,678.19,0.25698782]
[1738245257635,1.10185875,679.18,678.2,0.25698782]
[1738245257839,1.10185875,679.18,678.18,0.25698782]
[1738245260241,1.10185875,679.19,678.18,0.25698782]
[1738245260642,1.10185875,679.19,678.17,0.2949113]
[1738245260835,1.10185875,679.19,678.18,0.25700606]
[1738245263037,0.29438605,679.38,678.18,0.25700606]
[1738245263038,1.10185875,679.18,678.18,0.25700606]
[1738245264044,1.10185875,679.18,678.19,0.25699253]
[1738245264239,1.10185875,679.18,678.2,0.25699253]
[1738245264441,1.10185875,679.18,678.18,0.25699253]
[1738245264636,1.10185875,679.18,678.19,0.25699253]
[1738245264843,1.10185875,679.18,678.18,0.25699253]
[1738245265044,1.10185875,679.18,678.19,0.25699253]
[1738245265239,1.10185875,679.18,678.18,0.25699253]
[1738245265437,1.10185875,679.18,678.19,0.25699253]
[1738245265641,1.10185875,679.18,678.18,0.25699253]
[1738245266746,1.10185875,679.2,678.18,0.25699253]
[1738245267344,1.10185875,679.2,678.17,0.2949113]
[1738245270943,1.10185875,679.37,678.17,0.2949113]
[1738245273353,0.29438605,679.38,678.17,0.2949113]
[1738245290759,0.27069353,679.37,678.18,0.25696228]
[1738245293359,0.29438605,679.38,678.17,0.2949113]
[1738245293558,0.27071189,679.37,678.18,0.25702114]
[1738245294156,1.10185875,679.24,678.18,0.25702114]
[1738245295258,1.10185875,679.24,678.19,0.25704408]
[1738245295460,1.10185875,679.24,678.17,0.2949113]
[1738245295461,1.10185875,679.24,678.18,0.25704408]
[1738245295761,1.10185875,679.24,678.19,0.25704408]
[1738245295960,1.10185875,679.24,678.17,0.2949113]
[1738245295961,1.10185875,679.24,678.2,0.25704408]
[1738245296154,1.10185875,679.24,678.21,0.25704408]
[1738245296357,1.10185875,679.24,678.22,0.25704408]
[1738245296559,1.10185875,679.24,678.18,0.25704408]
[1738245296863,1.10185875,679.2,678.19,0.25704408]
[1738245297059,1.10185875,679.2,678.18,0.25704408]
[1738245297263,1.10185875,679.2,678.19,0.25704408]
[1738245297460,1.10185875,679.2,678.2,0.25704408]
[1738245297660,1.10185875,679.2,678.18,0.25704408]
[1738245297860,1.10185875,679.2,678.19,0.25704408]
[1738245298161,1.10185875,679.2,678.2,0.25704408]
[1738245298461,1.10185875,679.2,678.17,0.2949113]
[1738245298761,1.10185875,679.2,678.18,0.25706617]
[1738245299759,1.10185875,679.2,678.17,0.2949113]
[1738245300464,1.10185875,679.18,678.17,0.2949113]
[1738245303460,1.10185875,679.31,678.17,0.2949113]
[1738245305761,1.10185875,679.3,678.17,0.2949113]
[1738245308760,1.10185875,679.32,678.17,0.2949113]
[1738245309766,0.27072643,679.31,678.18,0.25697152]
[1738245312868,1.10185875,679.32,678.18,0.25697152]
[1738245313269,1.10185875,679.32,678.17,0.2949113]
[1738245314069,1.10185875,679.24,678.18,0.25681335]
[1738245318573,0.29438605,679.38,678.18,0.25681335]
[1738245320772,0.29438605,679.38,678.19,0.25678145]
[1738245321079,0.29438605,679.38,678.2,0.25678145]
[1738245321278,0.29438605,679.38,678.18,0.25678145]
[1738245321477,0.29438605,679.38,678.21,0.25678145]
[1738245321673,0.29438605,679.38,678.22,0.25678145]
[1738245321877,0.29438605,679.38,678.18,0.25678145]
[1738245322075,0.29438605,679.38,678.19,0.25678145]
[1738245322273,0.29438605,679.38,678.18,0.25678145]
[1738245322479,0.29438605,679.38,678.19,0.25678145]
[1738245322674,0.29438605,679.38,678.2,0.25678712]
[1738245322876,0.29438605,679.38,678.21,0.25678712]
[1738245323178,0.29438605,679.38,678.22,0.25678712]
[1738245323479,0.29438605,679.38,678.23,0.25678712]
[1738245323672,0.29438605,679.38,678.18,0.25678712]
[1738245323877,0.29438605,679.38,678.17,1.83250616]
[1738245323878,0.29438605,679.38,678.19,0.25678712]
[1738245324178,0.29438605,679.38,678.2,0.25678712]
[1738245324379,0.29438605,679.38,678.18,0.25678712]
[1738245324581,0.29438605,679.38,678.19,0.25678712]
[1738245324778,0.29438605,679.38,678.18,0.25678712]
[1738245324974,0.29438605,679.38,678.19,0.25678712]
[1738245325179,0.29438605,679.38,678.17,1.83250616]
[1738245325180,0.29438605,679.38,678.18,0.25678712]
[1738245325376,0.29438605,679.38,678.19,0.25678712]
[1738245325577,0.29438605,679.38,678.18,0.25678712]
[1738245325874,0.29438605,679.38,678.17,1.83250616]
[1738245326077,0.29438605,679.38,678.18,0.25678031]
[1738245329379,0.29438605,679.38,678.19,0.25678357]
[1738245329576,0.29438605,679.38,678.18,0.25678357]
[1738245329880,0.29438605,679.38,678.17,1.83250616]
[1738245329881,0.29438605,679.38,678.19,0.25678357]
[1738245330077,0.29438605,679.38,678.18,0.25678357]
[1738245330275,0.29438605,679.38,678.19,0.25678357]